Cogmind - Beta 10.2 *** ADVENTURER MODE // 2021.02.02 @ 14:49:06 Player: Chicken Result: Destroyed by S-10 Pest with Light Assault Rifle Performance ------------- Evolutions (0) 0 Regions Visited (1) 200 Robots Destroyed (13) 65 Value Destroyed (120) 120 Prototype IDs (2) 40 Alien Tech Used (0) 0 Bonus (0) 0 TOTAL SCORE: 425 Bonus ------- None Cogmind --------- Core Integrity 0/250 Matter 275/300 Energy 100/100 System Corruption 0% Temperature Cool (0) Movement Core (150) Ox2 Location -10/Materials Parts ------- > --- POWER (1) -------- (None) > --- PROPULSION (2) --- (None) > --- UTILITY (2) ------ Field Recycling Unit > --- WEAPON (2) ------- (None) > --- INVENTORY (4) ---- ECM Suite Peak State ------------ > --- POWER ------------ Ion Engine > --- PROPULSION ------- Improved Aluminum Leg Improved Aluminum Leg > --- UTILITY ---------- High-capacity Battery Field Recycling Unit > --- WEAPON ----------- Small Laser Small Laser > --- INVENTORY -------- Flight Unit Small Battery [Rating: 10] Favorites ----------- Power Ion Engine Engine Ion Engine Propulsion Flight Unit Leg Improved Aluminum Leg Wheel Wheel Flight Unit Flight Unit Utility High-capacity Battery Device Field Recycling Unit Storage High-capacity Battery Processor Seismic Analyzer Protection Power Shielding Weapon Small Laser Energy Gun Small Laser Ballistic Gun Assault Rifle Launcher Grenade Launcher Special Melee Weapon Datajack Build | -11 -10 ------- Run | Scr Mat Slots Evolved . | . . Power . | . . Propulsion . | . . Utility . | . . Weapon . | . . Parts Attached 33 | 10 23 Power 2 | 2 . Engine 2 | 2 . Core . | . . Reactor . | . . Propulsion 7 | 2 5 Treads . | . . Leg 2 | . 2 Wheel 2 | 2 . Hover . | . . Flight 3 | . 3 Utility 14 | 4 10 Device 4 | 2 2 Storage 7 | 1 6 Processor 2 | 1 1 Hackware . | . . Protection 1 | . 1 Artifact . | . . Weapon 10 | 2 8 Energy Gun 4 | 2 2 Energy Cannon . | . . Ballistic Gun 3 | . 3 Ballistic Cannon . | . . Launcher 1 | . 1 Special Weapon . | . . Impact Weapon . | . . Slashing Weapon . | . . Piercing Weapon . | . . Special Melee Weapon 2 | . 2 Unidentified Prototypes . | . . Parts Lost 7 | . 7 Power 1 | . 1 Propulsion 2 | . 2 Utility 1 | . 1 Weapon 3 | . 3 Highest Loss Streak 5 | . 5 Average Slot Usage (%) 85 | . 85 Engine 12 | . 12 Leg 4 | . 4 Wheel 6 | . 6 Flight 10 | . 10 Device 8 | . 8 Storage 17 | . 17 Energy Gun 12 | . 12 Ballistic Gun 4 | . 4 Special Melee Weapon 7 | . 7 Naked Turns . | . . Heaviest Build 41 | 9 41 Greatest Support 26 | 20 26 Greatest Overweight (x) 10 | . 10 Average Overweight (x) 1 | . 1 Largest Inventory Capacity 16 | 4 16 Average Capacity 6 | 4 6 Most Carried 13 | 4 13 Average Carried 2 | 2 2 Final Capacity 4 | 4 4 Final Carried 4 | 4 1 Class Distribution -------------------- 100% | Mutant Dominant Class ---------------- Mutant | -10/Materials Resources | -11 -10 ----------- Run | Scr Mat Matter Collected 613 | 350 263 Remotely . | . . Salvage Created 428 | 135 293 Parts 29 | 13 16 Haulers Intercepted . | . . Recyclers Shooed 2 | . 2 Parts Field Recycled 5 | . 5 Retrieved Matter 5 | . 5 Parts Self-Destructed . | . . Prevented . | . . Kills | -11 -10 ------- Run | Scr Mat Combat Hostiles Destroyed 4 | 1 3 Guns 4 | 1 3 Classes Destroyed 7 | 3 4 Worker 2 | 1 1 Builder 1 | . 1 Tunneler 3 | 3 . Recycler 2 | . 2 Watcher 1 | . 1 Swarmer 3 | . 3 Grunt 1 | 1 . Best Kill Streak 5 | 5 3 Combat Bots Only 3 | 1 3 Max Kills in Single Turn 1 | 1 1 Gunslinging . | . . Exploded . | . . Melee . | . . Uniques/NPCs Destroyed . | . . Combat | -11 -10 -------- Run | Scr Mat Damage Taken 568 | 8 560 Core 252 | 8 244 Absorbed by Shields . | . . Core Remaining (%) 96 | 96 . Volleys Fired 42 | 7 35 Largest 2 | 2 2 Hottest 80 | 80 80 Shots Fired 71 | 14 57 Gun 68 | 14 54 Cannon . | . . Launcher 3 | . 3 Special . | . . Kinetic 16 | . 16 Thermal 52 | 14 38 Explosive 3 | . 3 Electromagnetic . | . . Robot Hit Streak 12 | 10 12 Robot Miss Streak 2 | 1 2 Penetration Max . | . . Secondary Targets 1 | . 1 Max Gunslinging Chain 1 | . 1 Shots Hit Robots 49 | 11 38 Core Hits 20 | 6 14 Critical Hits . | . . Critical Kills . | . . Critical Parts Destroyed . | . . Melee Attacks 4 | . 4 Impact . | . . Slashing . | . . Piercing . | . . Sneak Attacks . | . . Combat Hostiles . | . . Follow-up Attacks . | . . Damage Inflicted 528 | 121 407 Guns 434 | 121 313 Cannons . | . . Explosions 94 | . 94 Melee . | . . Ramming . | . . Kinetic 108 | . 108 Thermal 326 | 121 205 Explosive 94 | . 94 Electromagnetic . | . . Impact . | . . Slashing . | . . Piercing . | . . Highest Corruption . | . . Average Corruption . | . . Corruption Purged . | . . Overload Shots . | . . Overflow Damage 8 | . 8 Projectiles . | . . Explosions 8 | . 8 Melee . | . . Knockbacks . | . . Impact . | . . Kinetic . | . . Secondary . | . . Self-Inflicted Damage 77 | . 77 Shots 3 | . 3 Rammed . | . . Targets Rammed . | . . Kicked . | . . Crushed . | . . Highest Temperature 144 | 72 144 Average Temperature 49 | 29 54 Received Heat Transfer 240 | 6 234 Siege Activations . | . . Robots Corrupted . | . . Combat Hostiles . | . . Parts Fried . | . . Impact Corruptions . | . . Robots Melted . | . . Combat Hostiles . | . . Parts Melted . | . . Heat Transferred 725 | 275 450 Parts Sabotaged . | . . Parts Stolen . | . . Parts Stripped . | . . Power Chain Reactions . | . . Missiles Intercepted . | . . Alert | -11 -10 ------- Run | Scr Mat Peak Influence 85 | 40 85 Initial 22 | . 22 Average 48 | 16 53 Maximum Alert Level . | . . Low Security (%) 100 | 100 100 Level 1 . | . . Level 2 . | . . Level 3 . | . . Level 4 . | . . Level 5 . | . . High Security . | . . Max Security . | . . Squads Dispatched 1 | . 1 Investigation 1 | . 1 Extermination . | . . Reinforcement . | . . Assault . | . . Garrison . | . . Intercept . | . . Construction Impeded . | . . Haulers Reinforced . | . . Stealth | -11 -10 --------- Run | Scr Mat Distress Signals 1 | . 1 Communications Jammed . | . . Distress Signals . | . . Times Spotted 11 | 1 10 Peak Tracking Total 5 | 1 5 Tactical Retreats . | . . Traps | -11 -10 ------- Run | Scr Mat Traps Triggered 2 | . 2 Indirectly . | . . Trap Hack Attempts . | . . Triggered . | . . Disarmed 5 | . 5 Reprogrammed . | . . Reused . | . . Traps Extracted . | . . Installed . | . . Triggered . | . . Machines | -11 -10 ---------- Run | Scr Mat Machines Disabled . | . . Max in Single Turn . | . . Machines Sabotaged . | . . Garrisons Compromised . | . . Overloaded Fab Kills . | . . Fab Network Shutdowns . | . . Hacking | -11 -10 --------- Run | Scr Mat Machines Accessed 2 | . 2 Terminals 1 | . 1 Fabricators . | . . Repair Stations 1 | . 1 Recycling Units . | . . Scanalyzers . | . . Garrison Access . | . . Total Hacks 8 | . 8 Successful 5 | . 5 Failed 3 | . 3 Catastrophic . | . . Database Lockouts . | . . Manual . | . . Terminals 7 | . 7 Fabricators . | . . Repair Stations 1 | . 1 Recycling Units . | . . Scanalyzers . | . . Garrison Access . | . . Terminal Hacks 5 | . 5 Robot Analysis 1 | . 1 Prototype ID Bank 1 | . 1 Emergency Access Points 1 | . 1 Locate Traps 1 | . 1 Disarm Traps 1 | . 1 Fabricator Hacks . | . . Repair Station Hacks . | . . Recycling Unit Hacks . | . . Scanalyzer . | . . Garrison Access Hacks . | . . Unauthorized Hacks . | . . Terminals . | . . Fabricators . | . . Repair Stations . | . . Recycling Units . | . . Scanalyzers . | . . Garrison Access . | . . Data Cores Recovered . | . . Used . | . . Hacking Detections 2 | . 2 Full Trace Events . | . . Feedback Events . | . . Feedback Blocked . | . . Robot Schematics Acquired . | . . Robots Built . | . . Matter . | . . Time . | . . Total Robot Build Rating . | . . Part Schematics Acquired . | . . Parts Built . | . . Matter . | . . Time . | . . Total Part Build Rating . | . . Parts Repaired . | . . Time . | . . Parts Recycled . | . . Recycled Matter . | . . Retrieved Matter . | . . Retrieved Components . | . . Parts Scanalyzed . | . . Part Schematics Acquired . | . . Parts Damaged . | . . Bothacking | -11 -10 ------------ Run | Scr Mat Used RIF Installer . | . . Robots Hacked 1 | . 1 Non-combat . | . . Combat 1 | . 1 Robot Hacks Applied 1 | . 1 parse_system 1 | . 1 Relay Couplers Released . | . . Robots Rewired . | . . Allies Hacked . | . . Hacks Repelled . | . . Allies | -11 -10 -------- Run | Scr Mat Total Allies . | . . Largest Group . | . . Highest-Rated Group . | . . Highest-Rated Ally . | . . Total Orders . | . . Ally Attacks . | . . Total Damage . | . . Kills . | . . Allies Corrupted . | . . Allies Melted . | . . Intel | -11 -10 ------- Run | Scr Mat Robot Analysis Total 1 | . 1 Derelict Logs Recovered . | . . Drone Launches . | . . Drone Recoveries . | . . Exploration | -11 -10 ------------- Run | Scr Mat Turns Passed 1079 | 142 937 Spaces Moved 598 | 122 476 Core 70 | 21 49 Treads . | . . Legs 71 | . 71 Wheels 255 | 101 154 Hover . | . . Flight 202 | . 202 Fastest Speed 50 | 50 80 Average Speed 135 | 74 151 Slowest Speed 840 | 80 840 Overloaded Moves . | . . Propulsion Burnouts . | . . Robots Hopped . | . . Cave-ins Triggered . | . . Exploration Rate (%) 27 | 5 50 Regions Visited 1 Branch Regions . Pre-discovered Areas . | . . Known Exits Taken . | . . Unknown Exits Taken 1 | 1 . Scrap Searched . | . . Spaces Dug . | . . Terrain Destroyed 10 | . 10 Melee . | . . Projectile . | . . AOE 10 | . 10 Terrain Rammed . | . . Walls Destroyed . | . . Machines Disabled . | . . Actions | -11 -10 --------- Run | Scr Mat Total 802 | 160 642 Wait 48 | . 48 Move 597 | 121 476 Hop . | . . Pick Up 43 | 16 27 Fast Attach . | . . Attach 25 | 9 16 Detach 4 | 1 3 Swap 8 | 1 7 Drop 31 | 5 26 Fire 42 | 7 35 Melee 4 | . 4 Ram . | . . Kick . | . . Crush . | . . Escape Stasis . | . . Rewire . | . . Trap . | . . Miscellaneous . | . . Route ------- -11/Scrapyard -10/Materials (discovered 2 exits: [*Mat x2]) History --------- Turn | Location | Event 2 | -11/Scrapyard | Met Revision 17 73 | -11/Scrapyard | Discovered new exit (range 8) 143 | -11/Scrapyard | Entered Materials 316 | -10/Materials | Build established: Mutant 436 | -10/Materials | Discovered new exit (range 5) 996 | -10/Materials | Core integrity fell below 50% 1024 | -10/Materials | Lost 5 parts (1p1n3w) 1050 | -10/Materials | Core integrity fell below 20% 1079 | -10/Materials | Discovered new exit (range 10) 1080 | -10/Materials | Destroyed by S-10 Pest with Light Assault Rifle Last Messages --------------- Flight Unit destroyed. Jacked G-34 Mercenary... Command string: kill No effect. Jacked G-34 Mercenary... Datajack destroyed. Ion Engine destroyed. Flight Unit destroyed. Acquired Grenade Launcher. U-05 Engineer lays Concrete. [Achievement: Let's See Who's Tougher] Datajack destroyed. Destroyed Datajack. Grenade Launcher destroyed. Destroyed Grenade Launcher. Acquired ECM Suite. Hcp. Battery destroyed. W-16 Scout distress signal alerts nearby ally. EXIT=FOUND [Achievement: First Step to Greatness] Map ----- +----------------------------------------------------+ | ???## ###########??# # """ ## ###+##### | | ???# ############# ######### | | ???# % | | ???# | | ???# ### ################### #####+### | | ???######?# #?????????????????# # | | ??????????# #?????????######### # """ ! | | ??????????# #?????????# """ # + "T" | | ?????????## ##???###### "Y" # # " " | | ?????????# ##### # # | | ?????????# # # """ | | ?????????# T !# # """ | | ?????????# ##### # # """ | | ?????????######???#### # #####+### | | ????????????????????# ! + # | | ????????????????????# # # # "" | | ????????????????????#### # #|| ! T" | | ???????????????????????# # #|| * "" | | ????????????????################ #| | | ????????????????# # """ | | ????????????????# #[ """ | | ????????????????# g # """ | | ????????????????# s#####+###### # | | ????????????????# s #?# #?# #####/### | | ????????????????# s #?# """ #?# ^ | | ????????????????# @#?# """ #?##+##### ^ | | ???????????????# ## """ #??? ???# ^ | | ????????????? ## #??? ???#### | | ??????????< ## #??? ???#### | | ????????# ## #??? ???#""" | | ????????####+### ## #??? ???#"R | | ???????????????###############??? ??#""" * | | ????????????????????????????????? ??# ""[* | | ?????????????????????????????????? ???#### | | ?????????????????????????????????????????# | | ?????????????????????????????????????????# | | ???????????????????????????????????????? | | ?????????????????????????????????????? | | ???????????????????????????????????? | | ?????????????????????????????????? | | ????????????????????????????????? #####T | | ?????????????????????????????????? ????## | | ?????????????????????????????????? ??????? | | ???????????????????????????????????????????? | | ???????????????????????????????????????????? | | ???????????????????????????????????????????? | | ???????????????????????????????????????????? | | ???????????????????????????????????????????? | | ???????????????????????????????????????????? | | ???????????????????????????????????????????? | +----------------------------------------------------+ Best States ------------- Heat Dissipation 25 Energy Generation 10 Energy Capacity 750 Matter Stores 350 Matter Capacity 350 Sight Range 18 Terrain Scan Range 16 Terrain Scan Density 60 Resistance: KI 20 Resistance: TH 20 Resistance: EX 20 Resistance: EM 20 Resistance: I 20 Resistance: S 20 Resistance: P 20 Power Shielding 33 Evasion (%) 50 Offensive Hacking 10 Item Schematics ----------------- None Robot Schematics ------------------ None Fabricated ------------ Nothing Alien Tech Used ----------------- None Achievements -------------- Crack Shot First Step to Greatness Let's See Who's Tougher Challenges ------------ None Game ------ Seed AbsorptionBurstCarapace Manual? 0 Play Time 00:35:14 Cumulative 1.1 hours Start 2021.02.01 @ 21:29:04 End 2021.02.02 @ 14:49:06 Sessions 3 Manual Loads 0 Difficulty Adventurer Special Mode None Game No. 1 Rogue 0 Adventurer 1 Explorer 0 Win Type - Total 0 Types 0/0/0/0/0/0/0/0/0 Lore% 0 Gallery% 2 Achievement% 1 Wizard Run 0 Options --------- ASCII 0 Keyboard 0 Movement Mouse Keybinds 0 Fullscreen 2 Font 18/SmallcapsGlow Map View 76x50 Tactical HUD 0 Map Filters NONE Filters NONE Steam 1 RUN: c60d1241-52c6-4dae-8ea4-bef627432cfc